bitfinex/quotes_BTCUSD_20240605
["timestamp","ask_amount","ask_price","bid_price","bid_amount"]
[1717550177607,0.00286,70745.0,70744.0,0.92181506]
[1717550179932,0.00286,70745.0,70744.0,0.47739613]
[1717550180805,0.00286,70745.0,70744.0,0.67739613]
[1717550181349,0.00186,70745.0,70744.0,0.66339613]
[1717550181779,0.00186,70745.0,70744.0,0.67739613]
[1717550181969,0.00086,70745.0,70744.0,0.66639613]
[1717550182366,0.00186,70745.0,70744.0,0.67739613]
[1717550182768,0.00086,70745.0,70744.0,0.66639613]
[1717550183167,0.00186,70745.0,70744.0,0.67739613]
[1717550184364,0.00186,70745.0,70744.0,0.47739613]
[1717550184577,0.00186,70745.0,70744.0,0.67739613]
[1717550186462,0.00186,70745.0,70744.0,0.47739613]
[1717550186631,0.00186,70745.0,70744.0,0.67739613]
[1717550191897,0.00186,70745.0,70744.0,0.47739613]
[1717550192279,0.00186,70745.0,70744.0,0.67739613]
[1717550192713,0.00186,70745.0,70744.0,0.47739613]
[1717550193118,0.00186,70745.0,70744.0,0.67739613]
[1717550195430,0.00186,70745.0,70744.0,1.20452406]
[1717550195885,0.1,70761.0,70760.0,0.01734213]
[1717550196097,0.1,70762.0,70761.0,0.01734213]
[1717550196351,0.1,70762.0,70760.0,0.067]
[1717550196352,0.141311,70766.0,70765.0,0.01734213]
[1717550196589,0.056579,70778.0,70768.0,0.01734213]
[1717550196590,0.143305,70769.0,70768.0,0.01734213]
[1717550196816,0.143305,70769.0,70765.0,0.01734213]
[1717550196817,0.223407,70768.0,70765.0,0.01734213]
[1717550197013,0.159,70767.0,70765.0,0.01734213]
[1717550197257,0.159,70767.0,70766.0,0.067]
[1717550197480,0.159,70767.0,70766.0,0.08434213]
[1717550197902,0.159,70767.0,70766.0,0.067]
[1717550198159,0.159,70767.0,70766.0,0.08434213]
[1717550198564,0.17,70767.0,70766.0,0.068]
[1717550198782,0.17,70767.0,70766.0,0.08534213]
[1717550198990,0.17,70767.0,70766.0,0.068]
[1717550199207,0.182,70767.0,70766.0,0.069]
[1717550199434,0.323308,70767.0,70766.0,0.069]
[1717550199906,0.312308,70767.0,70766.0,0.068]
[1717550200138,0.394908,70767.0,70766.0,0.001]
[1717550200353,0.394908,70767.0,70748.0,0.1639]
[1717550200354,0.2369,70758.0,70753.0,0.01734213]
[1717550200562,0.2369,70758.0,70757.0,0.067]
[1717550200786,0.2369,70758.0,70757.0,0.08434213]
[1717550201207,0.0826,70758.0,70757.0,0.067]
[1717550201435,0.0826,70758.0,70757.0,0.08434213]
[1717550201918,0.141325,70759.0,70758.0,0.01734213]
[1717550202178,0.282626,70765.0,70759.0,0.01734213]
[1717550202447,0.003,70767.0,70764.0,0.067]
[1717550202672,0.141312,70765.0,70764.0,0.067]
[1717550203130,0.141312,70765.0,70764.0,0.08434213]
[1717550203589,0.141312,70765.0,70764.0,0.067]
[1717550203794,0.151312,70765.0,70764.0,0.068]
[1717550204006,0.151312,70765.0,70764.0,0.067]
[1717550204403,0.151312,70765.0,70764.0,0.068]
[1717550205191,0.141312,70765.0,70764.0,0.068]
[1717550205648,0.142312,70765.0,70764.0,0.08534213]
[1717550206583,0.142312,70765.0,70764.0,0.068]
[1717550210928,0.142312,70765.0,70764.0,0.08534213]
[1717550211875,0.142312,70765.0,70764.0,0.068]
[1717550212263,0.14226181,70765.0,70764.0,0.068]
[1717550216689,0.14226181,70765.0,70764.0,0.08534213]
[1717550217629,0.14226181,70765.0,70764.0,0.068]
[1717550218217,0.14226181,70765.0,70764.0,0.08534213]
[1717550219726,0.001,70765.0,70764.0,0.08534213]
[1717550219905,0.001,70765.0,70764.0,0.25019389]
[1717550220555,0.001,70765.0,70764.0,0.068]
[1717550220760,0.001,70765.0,70764.0,0.08534213]
[1717550221185,0.001,70765.0,70764.0,0.09099387]
[1717550221408,0.001,70765.0,70764.0,0.32349387]
[1717550221623,0.001,70765.0,70764.0,0.52349387]
[1717550223096,0.001,70765.0,70764.0,0.66480787]
[1717550223311,0.001,70765.0,70764.0,0.8092268]
[1717550223734,0.001,70765.0,70764.0,0.9092268]
[1717550223945,0.001,70765.0,70764.0,1.1918558]
[1717550224166,0.001,70765.0,70764.0,1.1908558]
[1717550224383,0.001,70765.0,70764.0,1.27497423]
[1717550224605,0.002,70765.0,70764.0,1.28918935]
[1717550224849,0.002,70765.0,70764.0,1.27518935]
[1717550225268,0.001,70765.0,70764.0,1.27518935]
[1717550225498,0.001,70765.0,70764.0,1.20142009]
[1717550225674,0.002,70765.0,70764.0,1.26608837]
[1717550225893,0.002,70765.0,70764.0,1.26608936]
[1717550226136,0.001,70765.0,70764.0,1.26808936]
[1717550226344,0.001,70765.0,70764.0,1.2168558]
[1717550226345,0.003,70765.0,70764.0,1.2168558]
[1717550226777,0.003,70765.0,70764.0,0.9342268]
[1717550226994,0.003,70765.0,70764.0,0.62857506]
[1717550227208,0.003,70765.0,70764.0,0.093]
[1717550227448,0.003,70765.0,70764.0,0.11034213]
[1717550232289,0.003,70765.0,70764.0,0.04334213]
[1717550232503,0.003,70765.0,70764.0,0.11034213]
[1717550236789,0.0837,70765.0,70764.0,0.026]
[1717550237042,0.2494,70765.0,70764.0,0.093]
[1717550237279,0.390712,70765.0,70764.0,0.093]
[1717550237513,0.390712,70765.0,70764.0,0.026]
[1717550237514,0.39336987,70765.0,70764.0,0.026]
[1717550237783,0.8194138,70765.0,70764.0,0.014]
[1717550238023,1.2690388,70765.0,70764.0,0.014]
[1717550238303,1.2690388,70765.0,70764.0,0.026]
[1717550238304,1.2030388,70765.0,70764.0,0.026]
[1717550238744,1.2030388,70765.0,70754.0,0.067]
[1717550238745,0.141332,70755.0,70754.0,0.067]
[1717550238951,0.375832,70755.0,70754.0,0.067]
[1717550240273,0.375832,70755.0,70754.0,0.068]
[1717550240702,0.37848987,70755.0,70754.0,0.068]
[1717550241625,0.76115487,70755.0,70754.0,0.001]
[1717550241858,1.1892388,70755.0,70754.0,0.001]
[1717550242073,1.2122388,70755.0,70754.0,0.001]
[1717550242354,1.2322388,70755.0,70754.0,0.001]
[1717550242573,1.2322388,70755.0,70745.0,0.000946]
[1717550242574,0.14400787,70746.0,70745.0,0.000946]
[1717550242845,0.40550787,70746.0,70745.0,0.000946]
[1717550243052,0.48390787,70746.0,70745.0,0.000946]
[1717550243736,0.9110278,70746.0,70745.0,0.000946]
[1717550244857,0.90326527,70746.0,70745.0,0.000946]
[1717550245293,0.90326527,70746.0,70745.0,0.001946]
[1717550245294,0.91026527,70746.0,70745.0,0.001946]
[1717550245482,0.91726527,70746.0,70745.0,0.001946]
[1717550257073,0.93464264,70746.0,70745.0,0.001946]
[1717550265341,0.39466427,70746.0,70745.0,0.001946]
[1717550266030,0.25024534,70746.0,70745.0,0.001946]
[1717550266450,0.25024534,70746.0,70745.0,0.021946]
[1717550266714,0.014,70746.0,70745.0,0.103146]
[1717550266936,0.014,70746.0,70745.0,0.263646]
[1717550268110,0.14134,70751.0,70750.0,0.02]
[1717550268330,0.24134,70751.0,70750.0,0.067]
[1717550269639,0.24634,70751.0,70750.0,0.067]
[1717550270266,0.24634,70751.0,70750.0,0.3143]
[1717550270738,0.25334,70751.0,70750.0,0.3143]
[1717550271365,0.24134,70751.0,70750.0,0.3143]
[1717550271559,0.24634,70751.0,70750.0,0.3143]
[1717550271843,0.25034,70751.0,70750.0,0.3143]
[1717550272100,0.25034,70751.0,70750.0,0.3343]
[1717550275302,0.109,70751.0,70750.0,0.3343]
[1717550275532,0.009,70751.0,70750.0,0.3343]
[1717550275721,0.109,70751.0,70750.0,0.3343]
[1717550276865,0.009,70751.0,70750.0,0.3343]
[1717550277965,0.15034,70751.0,70750.0,0.2473]
[1717550278233,0.109,70751.0,70750.0,0.067]
[1717550278441,0.141346,70748.0,70747.0,0.067]
[1717550279998,0.105,70751.0,70749.0,0.0765]
[1717550280205,0.005,70751.0,70750.0,0.15922824]
[1717550280416,0.1,70755.0,70753.0,0.02]
[1717550280624,0.141326,70758.0,70756.0,0.2384]
[1717550280838,0.141316,70763.0,70759.0,0.02]
[1717550281063,0.141316,70763.0,70762.0,0.067]
[1717550281278,0.141311,70766.0,70762.0,0.067]
[1717550281489,0.141311,70766.0,70765.0,0.067]
[1717550282186,0.141311,70766.0,70765.0,0.087]
[1717550282396,0.002,70769.0,70765.0,0.087]
[1717550282630,0.002,70769.0,70768.0,0.067]
[1717550282845,0.002,70769.0,70768.0,0.087]
[1717550283550,0.002,70769.0,70768.0,0.09265134]
[1717550284001,0.014,70769.0,70768.0,0.09365134]
[1717550284215,0.014,70769.0,70768.0,0.088]
[1717550284892,0.014,70769.0,70768.0,0.068]
[1717550285107,0.007,70769.0,70768.0,0.067]
[1717550285548,0.011,70769.0,70768.0,0.067]
[1717550287363,0.011,70769.0,70768.0,0.087]
[1717550287785,0.011,70769.0,70768.0,0.067]
[1717550287996,0.011,70769.0,70768.0,0.087]
[1717550293421,0.152306,70769.0,70764.0,0.2294]
[1717550293624,0.152306,70769.0,70768.0,0.067]
[1717550294494,0.011,70769.0,70753.0,0.3334]
[1717550294713,0.011,70769.0,70762.0,0.067]
[1717550294714,0.141316,70764.0,70762.0,0.067]
[1717550296099,0.141316,70764.0,70762.0,0.069]
[1717550296860,0.141316,70763.0,70762.0,0.002]
[1717550297073,0.378816,70763.0,70762.0,0.002]
[1717550297286,0.378816,70763.0,70762.0,0.003]
[1717550297908,0.378816,70763.0,70762.0,0.002]
[1717550298164,0.002,70769.0,70768.0,0.02]
[1717550298356,0.002,70769.0,70768.0,0.3216]
[1717550299191,0.002,70769.0,70768.0,0.237]
[1717550299400,0.002,70769.0,70768.0,0.5147]
[1717550299804,0.002,70769.0,70768.0,0.3147]
[1717550300041,0.006,70769.0,70768.0,0.3147]
[1717550300468,0.011,70769.0,70768.0,0.3147]
[1717550300892,0.011,70769.0,70768.0,0.456006]
[1717550301393,0.00086,70772.0,70768.0,0.456006]
[1717550301394,0.00086,70772.0,70771.0,0.42]
[1717550301565,0.004,70779.0,70778.0,0.802286]
[1717550301765,0.00086,70781.0,70780.0,0.561282]
[1717550301906,0.00086,70781.0,70780.0,1.02142917]
[1717550302117,0.002,70789.0,70788.0,0.361266]
[1717550302322,0.002,70789.0,70788.0,0.81618493]
[1717550303543,0.003,70789.0,70788.0,0.83018493]
[1717550304076,0.003,70789.0,70788.0,1.03078493]
[1717550304219,0.00086,70802.0,70798.0,0.793946]
[1717550304374,0.00086,70802.0,70798.0,1.10596493]
[1717550305207,0.00086,70802.0,70798.0,1.14864508]
[1717550305659,0.00086,70802.0,70798.0,1.16264508]
[1717550306500,0.00086,70802.0,70798.0,1.11996493]
[1717550306921,0.00862,70822.0,70814.0,0.361215]
[1717550307131,0.00862,70822.0,70821.0,0.561201]
[1717550307287,0.00862,70822.0,70821.0,1.03341993]
[1717550307490,0.002,70829.0,70821.0,1.03341993]
[1717550307491,0.002,70829.0,70822.0,0.721399]
[1717550307697,0.002,70829.0,70828.0,1.14358924]
[1717550307942,0.002,70829.0,70828.0,1.05130596]
[1717550308078,0.002,70829.0,70828.0,1.09477634]
[1717550308279,0.002,70829.0,70828.0,0.92717634]
[1717550308526,0.002,70829.0,70828.0,1.09477634]
[1717550308758,0.002,70829.0,70828.0,1.05130596]
[1717550308935,0.002,70829.0,70828.0,0.85130596]
[1717550309149,0.002,70829.0,70828.0,1.05130596]
[1717550309565,0.002,70829.0,70828.0,0.85130596]
[1717550309780,0.002,70829.0,70828.0,1.05130596]
[1717550310213,0.002,70829.0,70828.0,0.85130596]
[1717550310647,0.002,70829.0,70828.0,0.86530596]
[1717550311047,0.002,70829.0,70828.0,0.87930596]
[1717550311682,0.002,70829.0,70828.0,0.49380593]
[1717550313945,0.002,70829.0,70828.0,0.028]
[1717550313946,0.1656,70829.0,70828.0,0.028]
[1717550314362,0.306785,70829.0,70828.0,0.028]
[1717550315210,0.306785,70829.0,70828.0,0.014]
[1717550315642,0.306785,70829.0,70814.0,0.4731]
[1717550315643,0.141201,70821.0,70814.0,0.4931]
[1717550315849,0.141201,70821.0,70815.0,0.02]
[1717550316917,0.141201,70821.0,70816.0,0.02]
[1717550317094,0.141201,70821.0,70817.0,0.02]
[1717550317509,0.141201,70821.0,70816.0,0.02]
[1717550317927,0.141201,70821.0,70815.0,0.011]
[1717550318134,0.141201,70821.0,70815.0,0.031]
[1717550318372,0.141201,70821.0,70817.0,0.011]
[1717550318586,0.141201,70821.0,70817.0,0.031]
[1717550318787,0.141201,70821.0,70817.0,0.011]
[1717550319617,0.141201,70821.0,70815.0,0.014]
[1717550319853,0.002,70829.0,70828.0,0.02]
[1717550320061,0.002,70829.0,70828.0,0.25982824]
[1717550320687,0.002,70829.0,70828.0,0.40424717]
[1717550320921,0.002,70829.0,70828.0,0.54543417]
[1717550321143,0.003,70829.0,70828.0,0.40524717]
[1717550321559,0.002,70829.0,70828.0,0.40424717]
[1717550322389,0.002,70829.0,70828.0,0.441235]
[1717550322564,0.002,70829.0,70828.0,0.40424717]
[1717550322773,0.002,70829.0,70828.0,0.41824717]
[1717550323195,0.002,70829.0,70828.0,0.014]
[1717550323413,0.002,70829.0,70828.0,0.028]
[1717550327016,0.002,70829.0,70828.0,0.028]
[1717550327717,0.143185,70829.0,70828.0,0.028]
[1717550328145,0.243185,70829.0,70828.0,0.028]
[1717550328371,0.525555,70829.0,70828.0,0.028]
[1717550328841,0.68997393,70829.0,70828.0,0.028]
[1717550329051,0.82577393,70829.0,70828.0,0.014]
[1717550329229,0.84577393,70829.0,70828.0,0.014]
[1717550329472,0.82577393,70829.0,70828.0,0.015]
[1717550329651,0.141211,70816.0,70815.0,0.4731]
[1717550330268,0.141211,70816.0,70815.0,0.49421952]
[1717550331315,0.141211,70816.0,70815.0,0.4731]
[1717550331528,0.141211,70816.0,70815.0,0.4861]
[1717550332377,0.141211,70816.0,70815.0,0.5001]
[1717550332987,0.141204,70820.0,70815.0,0.5201]
[1717550333198,0.141198,70823.0,70822.0,0.07222824]
[1717550333410,0.141199,70822.0,70818.0,0.02]
[1717550333557,0.1,70821.0,70815.0,0.027]
[1717550333771,0.141203,70820.0,70815.0,0.027]
[1717550333971,0.141203,70820.0,70815.0,0.014]
[1717550334398,0.141203,70820.0,70813.0,0.02]
[1717550335507,0.141203,70820.0,70815.0,0.014]
[1717550336518,0.141203,70820.0,70815.0,0.025]
[1717550336943,0.002,70829.0,70819.0,0.19222824]
[1717550337156,0.002,70829.0,70828.0,0.23982824]
[1717550337366,0.002,70829.0,70828.0,0.25982824]
[1717550338413,0.002,70829.0,70828.0,0.23982824]
[1717550338633,0.002,70829.0,70828.0,0.25982824]
[1717550339423,0.002,70829.0,70828.0,0.25382824]
[1717550339628,0.002,70829.0,70828.0,0.27382824]
[1717550340455,0.002,70829.0,70828.0,0.28782824]
[1717550341598,0.002,70829.0,70828.0,0.87343417]
[1717550341807,0.002,70829.0,70828.0,1.21883417]
[1717550342654,0.002,70829.0,70828.0,1.2565584]
[1717550342833,0.002,70829.0,70828.0,1.2285584]
[1717550343037,0.002,70829.0,70828.0,1.2425584]
[1717550343245,0.002,70829.0,70828.0,1.5389324]
[1717550343651,0.002,70829.0,70828.0,1.56065561]
[1717550343868,0.002,70829.0,70828.0,1.5389324]
[1717550344535,0.002,70829.0,70828.0,1.5109324]
[1717550344957,0.002,70829.0,70828.0,1.5249324]
[1717550345811,0.002,70829.0,70828.0,1.48720817]
[1717550346242,0.00286,70829.0,70828.0,1.48720817]
[1717550346486,0.00286,70829.0,70828.0,1.50120817]
[1717550346917,0.00286,70829.0,70828.0,1.48720817]
[1717550347347,0.00286,70829.0,70828.0,1.50120817]
[1717550347589,0.00286,70829.0,70828.0,1.48720817]
[1717550347802,0.00286,70829.0,70828.0,1.47320817]
[1717550348015,0.00286,70829.0,70828.0,1.48720817]
[1717550348640,0.00862,70836.0,70828.0,1.48720817]
[1717550348641,0.00862,70836.0,70835.0,0.561173]
[1717550348879,0.00862,70836.0,70835.0,1.16230336]
[1717550349085,0.00862,70836.0,70835.0,1.34735381]
[1717550349298,0.00862,70836.0,70835.0,2.230795]
[1717550349507,0.00862,70836.0,70835.0,2.23079497]
[1717550349714,0.00862,70836.0,70835.0,2.16784887]
[1717550350388,0.00862,70836.0,70835.0,2.12570615]
[1717550350803,0.00862,70836.0,70835.0,2.11170615]
[1717550351013,0.00862,70836.0,70835.0,2.52570615]
[1717550351219,0.002,70849.0,70848.0,0.32]
[1717550351467,0.002,70849.0,70848.0,1.01136203]
[1717550351675,0.002,70849.0,70848.0,1.01025263]
[1717550352115,0.002,70849.0,70848.0,1.4733334]
[1717550352323,0.002,70849.0,70848.0,1.4300997]
[1717550352539,0.002,70849.0,70848.0,1.4440997]
[1717550352749,0.002,70849.0,70848.0,1.3440997]
[1717550352958,0.002,70849.0,70848.0,1.2440997]
[1717550353584,0.002,70849.0,70848.0,1.21845993]
[1717550354244,0.002,70849.0,70848.0,1.25522601]
[1717550354453,0.002,70849.0,70848.0,0.76856593]
[1717550354664,0.002,70849.0,70848.0,0.93616593]
[1717550354866,0.002,70849.0,70848.0,1.21845993]
[1717550355519,0.002,70849.0,70848.0,1.11845993]
[1717550356381,0.002,70849.0,70848.0,1.21845993]
[1717550356610,0.002,70849.0,70848.0,1.11845993]
[1717550356815,0.002,70849.0,70848.0,1.21845993]
[1717550357229,0.002,70849.0,70848.0,1.05085993]
[1717550357433,0.002,70849.0,70848.0,1.21845993]
[1717550358046,0.002,70849.0,70848.0,0.93616593]
[1717550360239,0.002,70849.0,70848.0,0.85396593]
[1717550361495,0.002,70849.0,70848.0,0.75396593]
[1717550361931,0.002,70849.0,70848.0,0.85396593]
[1717550362241,0.002,70849.0,70848.0,0.82714787]
[1717550362445,0.002,70849.0,70848.0,0.92714787]
[1717550362664,0.002,70849.0,70848.0,0.82714787]
[1717550362888,0.002,70849.0,70848.0,0.92714787]
[1717550363730,0.002,70849.0,70848.0,0.75434787]
[1717550363956,0.002,70849.0,70848.0,0.77434792]
[1717550366316,0.002,70849.0,70848.0,1.06707608]
[1717550366772,0.002,70849.0,70848.0,0.96707608]
[1717550366960,0.002,70849.0,70848.0,0.77947608]
[1717550367173,0.002,70849.0,70848.0,0.10118199]
[1717550367392,0.1531,70849.0,70848.0,0.10118199]
[1717550367780,0.1531,70849.0,70848.0,0.028]
[1717550367984,0.2339,70849.0,70848.0,0.028]
[1717550368190,0.375045,70849.0,70848.0,0.028]
[1717550368976,0.375045,70849.0,70848.0,0.014]
[1717550369185,0.375045,70849.0,70848.0,0.028]
[1717550369467,0.375045,70849.0,70848.0,0.014]
[1717550369668,0.375045,70849.0,70848.0,0.027]
[1717550370089,0.375045,70849.0,70848.0,0.014]
[1717550370542,0.141154,70845.0,70837.0,0.07222824]
[1717550370765,0.141154,70845.0,70838.0,0.07320115]
[1717550372006,0.376047,70849.0,70839.0,0.02]
[1717550372210,0.376047,70849.0,70848.0,0.07222824]
[1717550372211,0.2349,70849.0,70848.0,0.07222824]
[1717550372586,0.2339,70849.0,70848.0,0.07222824]
[1717550373289,0.2339,70849.0,70843.0,0.02]
[1717550373982,0.2349,70849.0,70844.0,0.07319502]
[1717550374419,0.2339,70849.0,70844.0,0.07319502]
[1717550375279,0.2339,70849.0,70844.0,0.08319502]
[1717550375485,0.2339,70849.0,70845.0,0.07319502]
[1717550376703,0.002,70849.0,70846.0,0.07222824]
[1717550376943,0.002,70849.0,70848.0,0.02]
[1717550377148,0.003,70849.0,70848.0,0.02]
[1717550377360,0.003,70849.0,70846.0,0.07222824]
[1717550377790,0.002,70849.0,70846.0,0.07222824]
[1717550378205,0.002,70849.0,70848.0,0.014]
[1717550379609,0.309445,70849.0,70848.0,0.014]
[1717550379826,0.310305,70849.0,70848.0,0.014]
[1717550380245,0.141148,70848.0,70846.0,0.014]
[1717550380703,0.141149,70847.0,70846.0,0.014]
[1717550381363,0.141149,70847.0,70839.0,0.000946]
[1717550381576,0.141149,70847.0,70846.0,0.014]
[1717550382899,0.217649,70847.0,70846.0,0.028]
[1717550383343,0.217649,70847.0,70846.0,0.014]
[1717550383560,0.141154,70845.0,70839.0,0.000946]
[1717550384005,0.141156,70844.0,70839.0,0.000946]
[1717550384841,0.141152,70846.0,70839.0,0.000946]
[1717550385075,0.141152,70846.0,70839.0,0.014946]
[1717550385505,0.141152,70846.0,70839.0,0.034946]
[1717550386310,0.0765,70847.0,70845.0,0.07222824]
[1717550386508,0.310306,70849.0,70845.0,0.23982824]
[1717550386718,0.00286,70849.0,70846.0,0.00564573]
[1717550386936,0.00286,70849.0,70848.0,0.02]
[1717550389225,0.00286,70849.0,70847.0,0.02564539]
[1717550389431,0.00286,70849.0,70846.0,0.29985]
[1717550389432,0.00586,70849.0,70848.0,0.02]
[1717550390071,0.00286,70849.0,70848.0,0.02]
[1717550390508,0.00286,70849.0,70848.0,0.1876]
[1717550391064,0.00586,70849.0,70848.0,0.1876]
[1717550391751,0.00586,70849.0,70848.0,0.55366593]
[1717550392432,0.00286,70849.0,70848.0,0.55366593]
[1717550392635,0.00486,70849.0,70848.0,0.55366593]
[1717550393189,0.00286,70849.0,70848.0,0.53366593]
[1717550393422,0.00286,70849.0,70848.0,0.54766593]
[1717550393662,0.00286,70849.0,70848.0,0.56766593]
[1717550394146,0.00286,70849.0,70848.0,0.58166593]
[1717550394374,0.00286,70849.0,70848.0,0.56166593]
[1717550394607,0.00286,70849.0,70848.0,0.58166593]
[1717550395313,0.00286,70849.0,70848.0,0.56166593]
[1717550395820,0.00286,70849.0,70848.0,0.34001893]
[1717550396626,0.00286,70849.0,70848.0,0.028]
[1717550396841,0.24906,70849.0,70848.0,0.028]
[1717550397053,0.24906,70849.0,70848.0,0.04915076]
[1717550397500,0.24906,70849.0,70848.0,0.028]
[1717550399398,0.24906,70849.0,70848.0,0.04915076]
[1717550401971,0.23906,70849.0,70848.0,0.04915076]
[1717550402193,0.380205,70849.0,70848.0,0.04915076]
[1717550402413,0.380205,70849.0,70848.0,0.028]
[1717550403289,0.380205,70849.0,70848.0,0.014]
[1717550403737,0.23906,70849.0,70841.0,0.02115076]
[1717550404566,0.141156,70844.0,70841.0,0.02115076]
[1717550404805,0.141157,70843.0,70841.0,0.02115076]
[1717550405658,0.23906,70849.0,70841.0,0.02115076]
[1717550405869,0.141158,70843.0,70841.0,0.02115076]
[1717550406075,0.141158,70843.0,70841.0,0.03515076]
[1717550406526,0.141158,70843.0,70841.0,0.02115076]
[1717550406733,0.141158,70843.0,70841.0,0.02815076]
[1717550406946,0.141158,70843.0,70841.0,0.03715076]
[1717550407405,0.141158,70843.0,70841.0,0.05115076]
[1717550407828,0.141151,70846.0,70841.0,0.05115076]
[1717550408097,0.141151,70846.0,70841.0,0.04415076]
[1717550408517,0.00286,70849.0,70845.0,0.07222824]
[1717550408987,0.00286,70849.0,70847.0,0.02115076]
[1717550409867,0.00286,70849.0,70848.0,0.41806437]
[1717550410085,0.00286,70849.0,70848.0,0.57471669]
[1717550410315,0.00286,70849.0,70848.0,0.59571792]
[1717550410553,0.00686,70849.0,70848.0,0.59571792]
[1717550411633,0.00686,70849.0,70848.0,0.59671792]
[1717550411843,0.00286,70849.0,70848.0,0.59671792]
[1717550412266,0.00286,70849.0,70848.0,0.59771792]
[1717550412728,0.00286,70849.0,70848.0,0.59671792]
[1717550412956,0.00286,70849.0,70848.0,0.59571792]
[1717550413168,0.00286,70849.0,70848.0,0.62371792]
[1717550415140,0.00286,70849.0,70848.0,0.82371792]
[1717550415779,0.00286,70849.0,70848.0,0.62371792]
[1717550419218,0.00286,70849.0,70848.0,0.58156593]
[1717550419435,0.00286,70849.0,70848.0,0.62371792]
[1717550420590,0.00286,70849.0,70848.0,0.58156593]
[1717550422413,0.00286,70849.0,70848.0,0.62371792]
[1717550423495,0.00286,70849.0,70848.0,0.58156593]
[1717550423722,0.00286,70849.0,70848.0,0.78156593]
[1717550424209,0.00286,70849.0,70848.0,0.82371792]
[1717550424656,0.00286,70849.0,70848.0,0.62371792]
[1717550424879,0.00286,70849.0,70848.0,0.58156593]
[1717550425600,0.00286,70849.0,70848.0,0.74916593]
[1717550426037,0.00286,70849.0,70848.0,0.94916593]
[1717550426733,0.00286,70849.0,70848.0,0.99131792]
[1717550427211,0.00286,70849.0,70848.0,0.94916593]
[1717550428081,0.00286,70849.0,70848.0,0.99131792]
[1717550430013,0.00286,70849.0,70848.0,0.69061792]
[1717550431159,0.00286,70849.0,70848.0,0.89061792]
[1717550431350,0.00286,70849.0,70848.0,0.69061792]
[1717550432493,0.00286,70849.0,70848.0,0.62371792]
[1717550432693,0.00286,70849.0,70848.0,0.89061792]
[1717550432896,0.00286,70849.0,70848.0,0.84846593]
[1717550434513,0.00286,70849.0,70848.0,1.23075993]
[1717550434902,0.00286,70849.0,70848.0,1.32583676]
[1717550435113,0.00286,70849.0,70848.0,1.31525039]
[1717550436396,0.00286,70849.0,70848.0,1.31523673]
[1717550439278,0.00286,70849.0,70848.0,1.39470663]
[1717550439713,0.00286,70849.0,70848.0,1.67700063]
[1717550440560,0.004,70859.0,70858.0,0.404527]
[1717550440794,0.004,70859.0,70858.0,0.61584593]
[1717550441005,0.004,70859.0,70858.0,0.65807386]
[1717550441217,0.004,70859.0,70858.0,0.81584593]
[1717550441649,0.004,70859.0,70858.0,0.61584593]
[1717550441867,0.004,70859.0,70858.0,0.62984593]
[1717550442099,0.004,70859.0,70858.0,0.39703209]
[1717550442984,0.004,70859.0,70858.0,0.41103209]
[1717550445139,0.004,70859.0,70858.0,0.40044593]
[1717550446860,0.00486,70859.0,70858.0,0.40044593]
[1717550450229,0.00486,70859.0,70858.0,0.38044593]
[1717550450653,0.00486,70859.0,70858.0,0.40044593]
[1717550451088,0.00486,70859.0,70858.0,0.31354593]
[1717550451283,0.00486,70859.0,70858.0,0.40044593]
[1717550451551,0.00486,70859.0,70858.0,0.38044593]
[1717550451997,0.00486,70859.0,70858.0,0.40044593]
[1717550454763,0.00486,70859.0,70858.0,0.38044593]
[1717550456137,0.00486,70859.0,70858.0,0.31354593]
[1717550456581,0.00486,70859.0,70858.0,0.38044593]
[1717550457002,0.00486,70859.0,70858.0,0.31354593]
[1717550457210,0.00486,70859.0,70858.0,0.38044593]
[1717550458072,0.00486,70859.0,70858.0,0.028]
[1717550458318,0.23806,70859.0,70858.0,0.028]
[1717550458540,0.23806,70859.0,70858.0,0.0949]
[1717550460519,0.00486,70859.0,70858.0,0.0949]
[1717550467058,0.221285,70859.0,70858.0,0.028]
[1717550467307,0.221285,70859.0,70858.0,0.0949]
[1717550467308,0.00486,70859.0,70858.0,0.0949]
[1717550467505,0.00486,70859.0,70858.0,0.40609088]
[1717550467725,0.00486,70859.0,70858.0,0.40044593]
[1717550468148,0.00486,70859.0,70858.0,0.49556992]
[1717550468788,0.00486,70859.0,70858.0,0.4954502]
[1717550469220,0.00486,70859.0,70858.0,0.4754502]
[1717550470324,0.00486,70859.0,70858.0,0.47543301]
[1717550471183,0.00486,70859.0,70858.0,0.46486242]
[1717550471396,0.00486,70859.0,70858.0,0.475433]
[1717550472462,0.00486,70859.0,70858.0,0.495433]
[1717550472614,0.00486,70859.0,70858.0,0.41101651]
[1717550472865,0.00486,70859.0,70858.0,0.49542831]
[1717550473447,0.00486,70859.0,70858.0,0.47542829]
[1717550474890,0.00486,70859.0,70858.0,0.47543178]
[1717550475315,0.00486,70859.0,70858.0,0.40853178]
[1717550475523,0.00486,70859.0,70858.0,0.47543178]
[1717550476550,0.00486,70859.0,70858.0,0.49543178]
[1717550479384,0.00486,70859.0,70858.0,0.41101654]
[1717550480527,0.00486,70859.0,70858.0,0.32411654]
[1717550480754,0.00486,70859.0,70858.0,0.41101654]
[1717550481221,0.00486,70859.0,70858.0,0.34411654]
[1717550481436,0.00486,70859.0,70858.0,0.39101654]
[1717550482061,0.00486,70859.0,70858.0,0.41101654]